Cogmind - Beta 11.1 @@@ ROGUE MODE // 2022.07.14 @ 17:29:51 Player: Rainynight Result: Self-destructed Performance ------------- Evolutions (1) 500 Regions Visited (2) 400 Robots Destroyed (8) 40 Value Destroyed (280) 280 Prototype IDs (0) 0 Alien Tech Used (0) 0 Bonus (0) 0 TOTAL SCORE: 1220 Bonus ------- None Cogmind --------- Core Integrity 379/400 Matter 300/300 Energy 250/250 System Corruption 0% Temperature Cool (9) Movement Treading (160) Location -9/Materials Parts ------- > --- POWER (1) -------- Ion Engine > --- PROPULSION (2) --- Light Treads Light Treads > --- UTILITY (4) ------ Small Storage Unit Structural Scanner Medium Armor Plating Hacking Suite > --- WEAPON (2) ------- EM Pulse Gun > --- INVENTORY (8) ---- Light Ion Engine Medium Armor Plating Small Laser Datajack Peak State ------------ > --- POWER ------------ Ion Engine > --- PROPULSION ------- Light Treads Light Treads > --- UTILITY ---------- Small Storage Unit Structural Scanner Medium Armor Plating Hacking Suite > --- WEAPON ----------- EM Pulse Gun EM Pulse Gun > --- INVENTORY -------- Light Ion Engine Small Laser Datajack [Rating: 12] Favorites ----------- Power Ion Engine Engine Ion Engine Propulsion Light Treads Treads Light Treads Utility Small Storage Unit Device Structural Scanner Storage Small Storage Unit Hackware Hacking Suite Protection Medium Armor Plating Weapon EM Pulse Gun Energy Gun EM Pulse Gun Build | -11 -10 -9 ------- Run | Scr Mat Mat Slots Evolved 2 | . . 2 Power . | . . . Propulsion . | . . . Utility 2 | . . 2 Weapon . | . . . Parts Attached 11 | 6 3 2 Power 2 | 1 1 . Engine 2 | 1 1 . Core . | . . . Reactor . | . . . Propulsion 2 | 2 . . Treads 2 | 2 . . Leg . | . . . Wheel . | . . . Hover . | . . . Flight . | . . . Utility 4 | 1 1 2 Device 1 | . 1 . Storage 1 | 1 . . Processor . | . . . Hackware 1 | . . 1 Protection 1 | . . 1 Artifact . | . . . Weapon 3 | 2 1 . Energy Gun 3 | 2 1 . Energy Cannon . | . . . Ballistic Gun . | . . . Ballistic Cannon . | . . . Launcher . | . . . Special Weapon . | . . . Impact Weapon . | . . . Slashing Weapon . | . . . Piercing Weapon . | . . . Special Melee Weapon . | . . . Unidentified Prototypes . | . . . Parts Lost 1 | . . 1 Power . | . . . Propulsion . | . . . Utility . | . . . Weapon 1 | . . 1 Highest Loss Streak 1 | . . 1 To Critical Strikes . | . . . Average Slot Usage (%) 93 | . 87 97 Engine 12 | . 14 11 Treads 24 | . 28 22 Device 7 | . 1 11 Storage 12 | . 14 11 Hackware 6 | . . 10 Protection 5 | . . 9 Energy Gun 24 | . 28 22 Naked Turns . | . . . Heaviest Build 22 | 11 15 22 Greatest Support 40 | 40 40 40 Greatest Overweight (x) 3 | 3 . . Average Overweight (x) . | . . . Largest Inventory Capacity 8 | 8 8 8 Average Capacity 7 | 7 8 8 Most Carried 5 | 1 2 5 Average Carried 2 | . 1 3 Final Capacity 8 | 8 8 8 Final Carried 4 | 1 2 4 Class Distribution -------------------- 100% | Mutant Dominant Class ---------------- Mutant | -10/Materials Mutant | -9/Materials Resources | -11 -10 -9 ----------- Run | Scr Mat Mat Matter Collected 307 | . 96 211 Remotely . | . . . Salvage Created 336 | . 167 169 Parts 13 | . 8 5 Haulers Intercepted . | . . . Recyclers Shooed . | . . . Parts Field Recycled . | . . . Retrieved Matter . | . . . Parts Self-Destructed . | . . . Prevented . | . . . Kills | -11 -10 -9 ------- Run | Scr Mat Mat Combat Hostiles Destroyed 7 | . 4 3 Guns 3 | . 2 1 AOE 2 | . 2 . Classes Destroyed 2 | . 1 1 Operator 1 | . . 1 Grunt 7 | . 4 3 Best Kill Streak 2 | . 2 2 Combat Bots Only 2 | . 2 2 Max Kills in Single Turn 2 | . 2 1 Gunslinging . | . . . Exploded 2 | . 2 . Melee . | . . . Uniques/NPCs Destroyed . | . . . Combat | -11 -10 -9 -------- Run | Scr Mat Mat Damage Taken 442 | . 153 289 Core 62 | . 41 21 Absorbed by Shields . | . . . Core Remaining (%) 91 | 100 83 . Volleys Fired 31 | . 9 22 Largest 2 | . 2 2 Hottest 80 | . 80 80 Shots Fired 53 | . 18 35 Gun 53 | . 18 35 Cannon . | . . . Launcher . | . . . Special . | . . . Kinetic . | . . . Thermal 7 | . 7 . Explosive . | . . . Electromagnetic 46 | . 11 35 Robot Hit Streak 6 | . 4 6 Robot Miss Streak 2 | . 2 2 Penetration Max . | . . . Secondary Targets . | . . . Shots Hit Robots 35 | . 11 24 Core Hits 12 | . 7 5 Critical Kills . | . . . Critical Parts Destroyed . | . . . Critical Strikes . | . . . Melee Attacks . | . . . Impact . | . . . Slashing . | . . . Piercing . | . . . Sneak Attacks . | . . . Combat Hostiles . | . . . Follow-up Attacks . | . . . Damage Inflicted 567 | 2 180 385 Guns 463 | . 119 344 Cannons . | . . . Explosions 102 | . 61 41 Melee . | . . . Ramming 2 | 2 . . Kinetic . | . . . Thermal 152 | . 111 41 Explosive . | . . . Electromagnetic 413 | . 69 344 Impact . | . . . Slashing . | . . . Piercing . | . . . Highest Corruption . | . . . Average Corruption . | . . . Corruption Purged . | . . . Corruption Blocked . | . . . Overload Shots . | . . . Overflow Damage . | . . . Projectiles . | . . . Explosions . | . . . Melee . | . . . Knockbacks . | . . . Impact . | . . . Kinetic . | . . . Secondary . | . . . Self-Inflicted Damage 28 | . 28 . Shots 1 | . 1 . Rammed 1 | 1 . . Targets Rammed 1 | 1 . . Kicked . | . . . Crushed . | . . . Highest Temperature 234 | . 144 234 Average Temperature 78 | . 53 92 Received Heat Transfer 228 | . 87 141 Effects 1 | . . 1 Interference 1 | . . 1 Siege Activations . | . . . Robots Corrupted 2 | . . 2 Combat Hostiles 2 | . . 2 Parts Fried 1 | . . 1 Impact Corruptions . | . . . Robots Melted . | . . . Combat Hostiles . | . . . Parts Melted . | . . . Heat Transferred 275 | . 225 50 Parts Sabotaged . | . . . Parts Stolen . | . . . Parts Stripped . | . . . Power Chain Reactions 2 | . 1 1 Missiles Intercepted . | . . . Alert | -11 -10 -9 ------- Run | Scr Mat Mat Peak Influence 183 | . 106 183 Initial 44 | . . 44 Average 82 | . 55 121 Maximum Alert Level . | . . . Low Security (%) 100 | 100 100 100 Level 1 . | . . . Level 2 . | . . . Level 3 . | . . . Level 4 . | . . . Level 5 . | . . . High Security . | . . . Max Security . | . . . Squads Dispatched 2 | . 1 1 Investigation . | . . . Extermination . | . . . Reinforcement 2 | . 1 1 Assault . | . . . Garrison . | . . . Intercept . | . . . Searches Triggered . | . . . Construction Impeded . | . . . Haulers Reinforced . | . . . Active Scanning Responses . | . . . Cargo Convoy Interrupts . | . . . Stealth | -11 -10 -9 --------- Run | Scr Mat Mat Distress Signals . | . . . Communications Jammed . | . . . Distress Signals . | . . . Times Spotted 12 | . 5 7 Peak Tracking Total 4 | . 2 4 Tactical Retreats . | . . . Traps | -11 -10 -9 ------- Run | Scr Mat Mat Traps Triggered . | . . . Indirectly . | . . . Trap Hack Attempts . | . . . Triggered . | . . . Disarmed . | . . . Reprogrammed . | . . . Reused . | . . . Traps Extracted . | . . . Installed . | . . . Triggered . | . . . Machines | -11 -10 -9 ---------- Run | Scr Mat Mat Machines Disabled . | . . . Max in Single Turn . | . . . Machines Sabotaged . | . . . Garrisons Compromised . | . . . Overloaded Fab Kills . | . . . Hacking | -11 -10 -9 --------- Run | Scr Mat Mat Machines Accessed 1 | . . 1 Terminals 1 | . . 1 Fabricators . | . . . Repair Stations . | . . . Recycling Units . | . . . Scanalyzers . | . . . Garrison Access . | . . . Total Hacks 4 | . . 4 Successful 3 | . . 3 Failed 1 | . . 1 Catastrophic . | . . . Database Lockouts . | . . . Manual 3 | . . 3 Terminals 4 | . . 4 Fabricators . | . . . Repair Stations . | . . . Recycling Units . | . . . Scanalyzers . | . . . Garrison Access . | . . . Terminal Hacks 3 | . . 3 Locate Traps 1 | . . 1 Reinforcement Status 1 | . . 1 Hauler Manifests 1 | . . 1 Fabricator Hacks . | . . . Repair Station Hacks . | . . . Recycling Unit Hacks . | . . . Scanalyzer . | . . . Garrison Access Hacks . | . . . Unauthorized Hacks . | . . . Terminals . | . . . Fabricators . | . . . Repair Stations . | . . . Recycling Units . | . . . Scanalyzers . | . . . Garrison Access . | . . . Data Cores Recovered . | . . . Used . | . . . Hacking Detections 1 | . . 1 Full Trace Events 1 | . . 1 Feedback Events . | . . . Feedback Blocked . | . . . Robot Schematics Acquired . | . . . Robots Built . | . . . Authchips . | . . . Time . | . . . Total Robot Build Rating . | . . . Part Schematics Acquired . | . . . Parts Built . | . . . Authchips . | . . . Time . | . . . Total Part Build Rating . | . . . Parts Repaired . | . . . Time . | . . . Parts Recycled . | . . . Recycled Matter . | . . . Retrieved Matter . | . . . Retrieved Components . | . . . Parts Scanalyzed . | . . . Part Schematics Acquired . | . . . Parts Damaged . | . . . Bothacking | -11 -10 -9 ------------ Run | Scr Mat Mat Used RIF Installer . | . . . Robots Hacked . | . . . Non-combat . | . . . Combat . | . . . Robot Hacks Applied . | . . . Relay Couplers Released . | . . . Fabnet Peak Effective % . | . . . Robots Rewired . | . . . Allies Hacked . | . . . Hacks Repelled . | . . . Allies | -11 -10 -9 -------- Run | Scr Mat Mat Total Allies . | . . . Largest Group . | . . . Highest-Rated Group . | . . . Highest-Rated Ally . | . . . Total Orders . | . . . Ally Attacks . | . . . Total Damage . | . . . Kills . | . . . Allies Corrupted . | . . . Allies Melted . | . . . Intel | -11 -10 -9 ------- Run | Scr Mat Mat Robot Analysis Total . | . . . Derelict Logs Recovered . | . . . Drone Launches . | . . . Drone Recoveries . | . . . Exploration | -11 -10 -9 ------------- Run | Scr Mat Mat Turns Passed 427 | 57 148 222 Spaces Moved 191 | 32 69 90 Core 12 | 12 . . Treads 179 | 20 69 90 Legs . | . . . Wheels . | . . . Hover . | . . . Flight . | . . . Fastest Speed 50 | 50 160 160 Average Speed 157 | 145 160 160 Slowest Speed 200 | 200 160 160 Overloaded Moves . | . . . Propulsion Burnouts . | . . . Robots Hopped . | . . . Cave-ins Triggered . | . . . Exploration Rate (%) 11 | 3 20 12 Regions Visited 2 Branch Regions . Pre-discovered Areas . | . . . Known Exits Taken . | . . . Unknown Exits Taken 2 | 1 1 . Scrap Searched . | . . . Spaces Dug . | . . . Terrain Destroyed 6 | . 2 4 Melee . | . . . Projectile . | . . . AOE 6 | . 2 4 Terrain Rammed . | . . . Walls Destroyed . | . . . Machines Disabled . | . . . Actions | -11 -10 -9 --------- Run | Scr Mat Mat Total 258 | 39 87 132 Wait 21 | . 7 14 Move 190 | 32 68 90 Hop . | . . . Pick Up 4 | 1 . 3 Fast Attach 9 | 6 1 2 Attach . | . . . Detach . | . . . Swap 2 | . 2 . Drop 1 | . . 1 Fire 31 | . 9 22 Melee . | . . . Ram . | . . . Kick . | . . . Crush . | . . . Escape Stasis . | . . . Rewire . | . . . Trap . | . . . Miscellaneous . | . . . Route ------- -11/Scrapyard -10/Materials -9/Materials History --------- Turn | Location | Event 14 | -11/Scrapyard | Discovered new exit (range 15) 58 | -11/Scrapyard | Entered Materials 203 | -10/Materials | Discovered new exit (range 3) 206 | -10/Materials | Entered another Materials area 206 | -9/Materials | Evolved 2 slots: Utility x2 318 | -9/Materials | Build established: Mutant 428 | -9/Materials | Self-destructed Last Messages --------------- 2x Hammer 2x Hvy. Ion Engine >>Enumerate(Reinforcements) Retrieving latest reported positions... No active reinforcement squads found. 00317_ K-01 Serf collects debris. 00320_ C-30 ARC bursts open, deploying its payload. 00320_ G-47 Trooper unfolds itself. 00320_ G-34 Mercenary unfolds itself. 00320_ K-01 Serf collects debris. 00329_ G-47 Trooper misfires. 00330_ K-01 Serf collects debris. 00336_ G-47 Trooper system terminally corrupted. 00338_ G-34 Mercenary IFF system glitched. 00341_ Overheating: System interference. 00341_ EM Pulse Gun temporarily disabled. 00345_ G-34 Mercenary destroyed. 00349_ Acquired 10 matter. 00367_ T-07 Excavator is excavating. 00426_ EM Pulse Gun destroyed. Map ----- +----------------------------------------------------+ | | | | | | | | | | | | | | | | | | | | | | | | | | | | | | | | | ?????????????????????????????????????????????????? | | ?????????????????????????????????????????????????? | | ???????????????????#######???????????????????????? | | ???????????????????#######???????????????????????? | | ???????????????????##==!! ?#################?????? | | ???????????????????##==!!??#################?????? | | ???????????????????## ?## # ##?????? | | ?????????????? #### ##### # """ ##?????? | | ??????????????######## ##### # """ ##?????? | | ???????? Y YY@ + # """ ##?????? | | ??????????????######## ##### # ##?????? | | ??????????????######## ##### # ##?????? | | ????????????????????## ##########+####+####?????? | | ????????????????????## ##?????? | | ????????????????????## ##?????? | | ????????????????????## ###+########### # ##?????? | | ????????????????????## ## ### # ##?????? | | ????????????????????## ##??????????## # ##?????? | | ????????????????????## ##??????????##### ##?????? | | ????????????????????## ????????????##### ##?????? | | ????????????????????# ???????????????## ##?????? | | ????????????????????? ??????????????###*###????? | | ????????????????????? ??????????????###%####???? | | ????????????????????# ?????????????##%% ###???? | | ????????????????????#####?????????????## ##???? | | ????????????????????#####?????????????## ##???? | | ??????????????????????????????? ########% ###### | | ???????????????????????????????########## ###### | | ???????????????????????????????# # # | | ???????????????????????????????? """ # #"" | | ??????????????????????????????## """ # #"T | | ??????????????????????????????## """ # #"" | | ??????????????????????????????## + + | | ??????????????????????????????## """ # # | +----------------------------------------------------+ Best States ------------- Heat Dissipation 28 Energy Generation 10 Energy Capacity 250 Matter Stores 300 Matter Capacity 300 Sight Range 16 Terrain Scan Density 10 Armor Coverage 225 Evasion (%) 40 Recoil Reduction 2 Offensive Hacking 10 Item Schematics ----------------- None Robot Schematics ------------------ None Fabricated ------------ Nothing Alien Tech Used ----------------- None Achievements -------------- None Challenges ------------ None Game ------ Seed SalvageCoilMembrane Manual? 0 Play Time 00:05:12 Cumulative 118.5 hours Start 2022.07.14 @ 17:26:32 End 2022.07.14 @ 17:29:51 Sessions 1 Manual Loads 0 Difficulty Rogue Special Mode None Game No. 159 Rogue 159 Adventurer 0 Explorer 0 Win Type - Total 5 Types 5/0/0/0/0/0/0/0/0 Lore% 59 Gallery% 63 Achievement% 53 Wizard Run 0 Options --------- ASCII 1 Keyboard 1 Movement Numpad Keybinds 0 Fullscreen 1 Font 18/X11 Map View 76x50 Tactical HUD 1 Map Filters NONE Filters NONE Steam 1 RUN: 36dd6aa9-233a-4a29-9f93-9e4208d5271c